fUSD/lending_fUSD_20240109
["ID","MTS","AMOUNT","RATE_DAILY","PERIOD"]
[310916432,1704814397555,-500.0,0.00042082,30]
[310916433,1704814397564,-870.0,0.00042082,30]
[310916434,1704814397573,-539.47,0.00042082,30]
[310916435,1704814397582,-1310.11,0.00042082,30]
[310916436,1704814397591,-1150.5,0.00042082,30]
[310916437,1704814397600,-500.0,0.00042082,30]
[310916438,1704814397610,-509.26266281,0.00042082,30]
[310916439,1704814397619,-1360.64,0.00042082,30]
[310916440,1704814397628,-1204.31,0.00042082,30]
[310916441,1704814397640,-923.19,0.00042082,30]
[310916442,1704814397648,-771.54,0.00042082,30]
[310916443,1704814397657,-2584.55,0.00042082,30]
[310916444,1704814397666,-1160.23,0.00042082,30]
[310916445,1704814397676,-1400.49,0.00042082,30]
[310916446,1704814397685,-1315.98,0.00042082,30]
[310916447,1704814397695,-500.0,0.00042082,10]
[310916448,1704814397704,-1972.08,0.00042082,30]
[310916449,1704814397714,-1668.26,0.00042082,30]
[310916450,1704814397723,-1439.0,0.00042082,30]
[310916451,1704814397734,-1429.35,0.00042082,30]
[310916452,1704814397743,-946.78,0.00042082,30]
[310916453,1704814397753,-2461.03,0.00042082,30]
[310916454,1704814397762,-713.51,0.00042082,30]
[310916455,1704814397771,-516.04451929,0.00042082,4]
[310916456,1704814397781,-1659.56,0.00042082,30]
[310916457,1704814397790,-500.0,0.00042082,30]
[310916458,1704814397799,-500.0,0.00042082,30]
[310916459,1704814397808,-500.0,0.00042082,30]
[310916460,1704814397817,-803.78,0.00042082,30]
[310916461,1704814397827,-614.42,0.00042082,30]
[310916462,1704814397836,-500.0,0.00042082,30]
[310916463,1704814397850,-800.95,0.00042082,30]
[310916464,1704814397859,-1758.64,0.00042082,30]
[310916465,1704814397869,-500.0,0.00042082,30]
[310916466,1704814397879,-1778.42,0.00042082,30]
[310916467,1704814397892,-848.11,0.00042082,30]
[310916468,1704814397902,-3407.77,0.00042082,30]
[310916469,1704814397911,-2138.28,0.00042082,30]
[310916470,1704814397920,-500.0,0.00042082,30]
[310916471,1704814397932,-886.41,0.00042082,30]
[310916472,1704814397944,-500.0,0.00042082,30]
[310916473,1704814397954,-1677.31,0.00042082,30]
[310916474,1704814397963,-500.0,0.00042082,30]
[310916475,1704814397973,-3178.9,0.00042082,30]
[310916476,1704814397983,-1138.73,0.00042082,30]
[310916477,1704814397992,-2732.04,0.00042082,30]
[310916478,1704814398002,-500.0,0.00042082,30]
[310916479,1704814398011,-770.65,0.00042082,30]
[310916480,1704814398020,-500.0,0.00042082,30]
[310916481,1704814398030,-2194.76,0.00042082,30]
[310916482,1704814398040,-500.0,0.00042082,30]
[310916483,1704814398049,-1048.75,0.00042082,30]
[310916484,1704814398058,-1329.34,0.00042082,30]
[310916485,1704814398068,-2754.0,0.00042082,30]
[310916486,1704814398077,-1008.53,0.00042082,30]
[310916487,1704814398087,-1507.83,0.00042082,30]
[310916488,1704814398096,-680.5,0.00042082,30]
[310916489,1704814398106,-500.0,0.00042082,30]
[310916490,1704814398117,-634.38,0.00042082,30]
[310916491,1704814398127,-2700.24,0.00042082,30]
[310916492,1704814398139,-500.0,0.00042082,30]
[310916493,1704814398148,-1356.37,0.00042082,30]
[310916494,1704814398157,-500.0,0.00042082,30]
[310916495,1704814398166,-651.64,0.00042082,30]
[310916496,1704814398176,-500.0,0.00042082,30]
[310916497,1704814398186,-500.0,0.00042082,30]
[310916498,1704814398196,-952.35,0.00042082,30]
[310916499,1704814398206,-427.03173205,0.00042082,30]
[310916500,1704814398215,-1810.23,0.00042082,30]
[310916501,1704814398225,-500.0,0.00042082,30]
[310916502,1704814398234,-587.58,0.00042082,30]
[310916503,1704814398244,-625.64,0.00042082,30]
[310916504,1704814398253,-676.46,0.00042082,30]
[310916505,1704814398263,-500.0,0.00042082,30]
[310916506,1704814398272,-500.0,0.00042082,30]
[310916507,1704814398282,-1006.7,0.00042082,30]
[310916508,1704814398293,-1037.96,0.00042082,30]
[310916509,1704814398302,-1236.35,0.00042082,30]
[310916510,1704814398312,-1919.15,0.00042082,30]
[310916511,1704814398322,-500.0,0.00042082,30]
[310916512,1704814398332,-500.0,0.00042082,30]
[310916513,1704814398342,-1578.69,0.00042082,30]
[310916514,1704814398352,-1865.73,0.00042082,30]
[310916515,1704814398362,-500.0,0.00042082,30]
[310916516,1704814398372,-1362.93,0.00042082,30]
[310916517,1704814398382,-1537.84,0.00042082,30]
[310916518,1704814398394,-2456.66,0.00042082,30]
[310916519,1704814398404,-500.0,0.00042082,30]
[310916520,1704814398414,-589.31,0.00042082,30]
[310916521,1704814398424,-1710.93,0.00042082,30]
[310916522,1704814398433,-788.83,0.00042082,30]
[310916523,1704814398442,-500.0,0.00042082,30]
[310916524,1704814398451,-2756.46,0.00042082,30]
[310916525,1704814398461,-2588.77,0.00042082,30]
[310916526,1704814398470,-946.47,0.00042082,30]
[310916527,1704814398480,-2705.23,0.00042082,30]
[310916528,1704814398490,-500.0,0.00042082,30]
[310916529,1704814398500,-464.20117925,0.00042082,30]
[310916530,1704814398510,-825.0,0.00042082,30]
[310916531,1704814398519,-1714.7,0.00042082,30]
[310916532,1704814398528,-821.89,0.00042082,30]
[310916533,1704814398538,-987.47,0.00042082,30]
[310916534,1704814398547,-12516.53,0.00042082,30]
[310916535,1704814398556,-2523.55,0.00042082,30]
[310916536,1704814398566,-178.72600068,0.00042082,30]
[310916537,1704814398575,-1027.68,0.00042082,30]
[310916538,1704814398585,-1217.97,0.00042082,30]
[310916539,1704814398594,-1474.62,0.00042082,30]
[310916540,1704814398604,-500.0,0.00042082,30]
[310916541,1704814398614,-1454.57,0.00042082,30]
[310916542,1704814398817,-500.0,0.00042082,30]
[310916543,1704814398827,-1048.97,0.00042082,30]
[310916544,1704814398840,-2127.96,0.00042082,30]
[310916545,1704814398849,-500.0,0.00042082,30]
[310916546,1704814398859,-1299.93,0.00042082,30]
[310916547,1704814398869,-2596.84,0.00042082,30]
[310916548,1704814398878,-500.0,0.00042082,30]
[310916549,1704814398888,-725.04,0.00042082,30]
[310916550,1704814398898,-1950.17,0.00042082,30]
[310916551,1704814398908,-2106.17,0.00042082,30]
[310916552,1704814398918,-794.41,0.00042082,30]
[310916553,1704814398928,-3285.45,0.00042082,30]
[310916554,1704814398938,-1542.09,0.00042082,7]
[310916555,1704814398948,-2655.79,0.00042082,30]
[310916556,1704814398958,-7119.89,0.00042082,30]
[310916557,1704814398967,-650.25,0.00042082,30]
[310916558,1704814398977,-1087.65,0.00042082,30]
[310916559,1704814398987,-500.0,0.00042082,30]
[310916560,1704814398997,-500.0,0.00042082,30]
[310916561,1704814399007,-913.65,0.00042082,30]
[310916562,1704814399017,-977.92,0.00042082,30]
[310916563,1704814399026,-2362.44,0.00042082,30]
[310916564,1704814399036,-576.88,0.00042082,30]
[310916565,1704814399046,-1112.82,0.00042082,30]
[310916566,1704814399055,-1726.68,0.00042082,30]
[310916567,1704814399065,-3996.86,0.00042082,30]
[310916568,1704814399075,-2396.9,0.00042082,30]
[310916569,1704814399085,-2486.71,0.00042082,30]
[310916570,1704814399095,-3045.65,0.00042082,30]
[310916571,1704814399104,-502.99,0.00042082,30]
[310916572,1704814399114,-4277.01,0.00042082,30]
[310916573,1704814399123,-2246.6,0.00042082,30]
[310916574,1704814399135,-1448.82,0.00042082,2]
[310916575,1704814399144,-1043.39,0.00042082,30]
[310916576,1704814399155,-502.73,0.00042082,30]
[310916577,1704814399164,-534.65,0.00042082,30]
[310916578,1704814399174,-891.36,0.00042082,30]
[310916579,1704814399184,-1353.62,0.00042082,30]
[310916580,1704814399194,-1838.21,0.00042082,30]
[310916581,1704814399204,-2632.89,0.00042082,30]
[310916582,1704814399213,-1576.53,0.00042082,30]
[310916583,1704814399223,-1105.49,0.00042082,30]
[310916584,1704814399233,-862.54,0.00042082,30]
[310916585,1704814399243,-1537.91,0.00042082,30]
[310916586,1704814399253,-500.0,0.00042082,30]
[310916587,1704814399262,-678.18,0.00042082,30]
[310916588,1704814399272,-500.0,0.00042082,30]
[310916589,1704814399282,-1574.3,0.00042082,30]
[310916590,1704814399292,-3580.78,0.00042082,30]
[310916591,1704814399302,-726.93,0.00042082,30]
[310916592,1704814399312,-10916.38,0.00042082,30]
[310916593,1704814399321,-1982.37,0.00042082,30]
[310916594,1704814399331,-1469.95,0.00042082,30]
[310916595,1704814399341,-4265.52,0.00042082,30]
[310916596,1704814399350,-2986.22,0.00042082,30]
[310916597,1704814399360,-3068.15,0.00042082,30]
[310916598,1704814399370,-1699.32,0.00042082,30]
[310916599,1704814399379,-686.48,0.00042082,30]
[310916600,1704814399389,-1390.68,0.00042082,30]
[310916601,1704814399399,-1685.22,0.00042082,30]
[310916602,1704814399409,-1223.53,0.00042082,30]
[310916603,1704814399419,-10247.09,0.00042082,30]
[310916604,1704814399429,-500.0,0.00042082,30]
[310916605,1704814399439,-500.0,0.00042082,30]
[310916606,1704814399448,-500.0,0.00042082,30]
[310916607,1704814399458,-1149.96,0.00042082,30]
[310916608,1704814399468,-6253.79,0.00042082,30]
[310916609,1704814399477,-989.82,0.00042082,30]
[310916610,1704814399486,-2365.66,0.00042082,30]
[310916611,1704814399496,-1963.83,0.00042082,30]
[310916612,1704814399506,-701.0,0.00042082,30]
[310916613,1704814399516,-705.46,0.00042082,30]
[310916614,1704814399525,-7334.72,0.00042082,30]
[310916615,1704814399534,-2159.55,0.00042082,30]
[310916616,1704814399544,-7759.7,0.00042082,30]
[310916617,1704814399553,-7619.16,0.00042082,30]
[310916618,1704814399563,-1725.58,0.00042082,30]
[310916619,1704814399572,-1264.61,0.00042082,30]
[310916620,1704814399582,-2266.7,0.00042082,30]
[310916621,1704814399591,-248.44898066,0.00042082,30]
[310916622,1704814399600,-914.32,0.00042082,30]
[310916623,1704814399610,-689.51,0.00042082,30]
[310916624,1704814399621,-500.0,0.00042082,30]
[310916625,1704814399630,-500.0,0.00042082,30]
[310916626,1704814399640,-6777.19,0.00042082,30]
[310916627,1704814399649,-1573.82,0.00042082,30]
[310916628,1704814399658,-500.0,0.00042082,30]
[310916629,1704814399667,-4036.91,0.00042082,30]
[310916630,1704814399677,-3417.76,0.00042082,30]
[310916631,1704814399687,-2670.87,0.00042082,30]
[310916632,1704814399697,-1768.69,0.00042082,30]
[310916633,1704814399706,-649.74,0.00042082,30]
[310916634,1704814399715,-2656.66,0.00042082,30]
[310916635,1704814399725,-3624.89,0.00042082,30]
[310916636,1704814399734,-891.81,0.00042082,30]
[310916637,1704814399744,-1969.21,0.00042082,30]
[310916638,1704814399754,-4760.81,0.00042082,30]
[310916639,1704814399764,-1849.48,0.00042082,30]
[310916640,1704814399774,-2591.36,0.00042082,30]
[310916641,1704814399783,-1829.62,0.00042082,30]
[310916642,1704814399793,-507.02,0.00042082,30]
[310916643,1704814399802,-1545.72,0.00042082,30]
[310916644,1704814399811,-820.1,0.00042082,30]
[310916645,1704814399821,-1282.15,0.00042082,30]
[310916646,1704814399832,-3330.89,0.00042082,30]
[310916647,1704814399844,-7125.45,0.00042082,30]
[310916648,1704814399854,-1041.48,0.00042082,30]
[310916649,1704814399864,-500.0,0.00042082,30]
[310916650,1704814399877,-163.26891805,0.00042082,30]
[310916651,1704814399890,-4552.78,0.00042082,30]
[310916652,1704814399900,-25135.11,0.00042082,30]
[310916653,1704814399910,-3134.7,0.00042082,30]
[310916654,1704814399921,-18448.99,0.00042082,30]
[310916655,1704814399931,-2000.28,0.00042082,30]
[310916656,1704814399940,-500.0,0.00042082,30]
[310916657,1704814399950,-745.36,0.00042082,30]
[310916658,1704814399960,-13835.28,0.00042082,30]
[310916659,1704814399969,-1655.6,0.00042082,30]
[310916660,1704814399979,-1353.98,0.00042082,30]
[310916661,1704814399989,-2446.36,0.00042082,30]
[310916662,1704814399997,-3526.58,0.00042082,30]
[310916663,1704814400007,-19704.83,0.00042082,30]
[310916664,1704814400017,-11755.41,0.00042082,30]
[310916665,1704814400028,-2085.11,0.00042082,30]
[310916666,1704814400040,-975.77,0.00042082,30]
[310916667,1704814400050,-500.0,0.00042082,7]
[310916668,1704814400060,-5456.33,0.00042082,30]
[310916669,1704814400071,-703.77,0.00042082,30]
[310916670,1704814400081,-578.03,0.00042082,30]
[310916671,1704814400092,-18929.09,0.00042082,30]
[310916672,1704814400102,-500.0,0.00042082,30]
[310916673,1704814400113,-91700.44,0.00042082,30]
[310916674,1704814400123,-610.44,0.00042082,30]
[310916675,1704814400136,-11389.4,0.00042082,30]
[310916676,1704814400148,-4955.76,0.00042082,30]
[310916677,1704814400158,-685.04,0.00042082,30]
[310916678,1704814400169,-5644.78,0.00042082,30]
[310916679,1704814400179,-1534.89,0.00042082,30]
[310916680,1704814400189,-1643.59,0.00042082,30]
[310916681,1704814400200,-1919.34,0.00042082,30]
[310916682,1704814400210,-1207.82,0.00042082,30]
[310916683,1704814400221,-2205.97,0.00042082,30]
[310916684,1704814400232,-3051.16,0.00042082,30]
[310916685,1704814400243,-500.0,0.00042082,30]
[310916686,1704814400253,-4326.12,0.00042082,30]
[310916687,1704814400263,-23372.75,0.00042082,30]
[310916688,1704814400274,-4650.3,0.00042082,30]
[310916689,1704814400284,-1706.69,0.00042082,30]
[310916690,1704814400295,-3602.98,0.00042082,30]
[310916691,1704814400306,-948.23,0.00042082,30]
[310916692,1704814400316,-1484.9,0.00042082,30]
[310916693,1704814400327,-625.91,0.00042082,30]
[310916694,1704814400338,-4750.61,0.00042082,30]
[310916695,1704814400349,-677.56,0.00042082,30]
[310916696,1704814400360,-753.01,0.00042082,30]
[310916697,1704814400370,-570.53,0.00042082,30]
[310916698,1704814400381,-1014.72,0.00042082,30]
[310916699,1704814400392,-1075.83,0.00042082,30]
[310916700,1704814400403,-10401.23,0.00042082,30]
[310916701,1704814400415,-1988.56,0.00042082,30]
[310916702,1704814400426,-500.0,0.00042082,30]
[310916703,1704814400437,-2247.55,0.00042082,30]
[310916704,1704814400447,-1760.09,0.00042082,30]
[310916705,1704814400457,-1917.59,0.00042082,30]
[310916706,1704814400467,-8509.95,0.00042082,30]
[310916707,1704814400479,-6630.63,0.00042082,30]
[310916708,1704814400489,-912.61,0.00042082,30]
[310916709,1704814400499,-6677.97,0.00042082,30]
[310916710,1704814400510,-500.0,0.00042082,30]
[310916711,1704814400520,-7738.46,0.00042082,30]
[310916712,1704814400530,-500.0,0.00042082,30]
[310916713,1704814400539,-14437.73,0.00042082,30]
[310916714,1704814400550,-1402.57,0.00042082,30]
[310916715,1704814400561,-814.2,0.00042082,30]
[310916716,1704814400571,-839.67,0.00042082,30]
[310916717,1704814400580,-500.0,0.00042082,30]
[310916718,1704814400590,-2196.22,0.00042082,30]
[310916719,1704814400600,-36009.51,0.00042082,30]
[310916720,1704814400610,-2863.88,0.00042082,30]
[310916721,1704814400620,-3304.26,0.00042082,30]
[310916722,1704814400630,-2592.03,0.00042082,30]
[310916723,1704814400640,-12556.6,0.00042082,30]
[310916724,1704814400649,-2705.09,0.00042082,30]
[310916725,1704814400659,-500.0,0.00042082,30]
[310916726,1704814400669,-495.63606762,0.00042082,30]
[310916727,1704814400679,-500.0,0.00042082,30]
[310916728,1704814400688,-2400.96,0.00042082,30]
[310916729,1704814400698,-4406.91,0.00042082,30]
[310916730,1704814400707,-1297.88,0.00042082,30]
[310916731,1704814400717,-6577.65,0.00042082,30]
[310916732,1704814400726,-571.22,0.00042082,30]
[310916733,1704814400736,-500.0,0.00042082,30]
[310916734,1704814400745,-3403.92,0.00042082,30]
[310916735,1704814400755,-2751.1,0.00042082,30]
[310916736,1704814400764,-3033.25,0.00042082,30]
[310916737,1704814400774,-952.63,0.00042082,30]
[310916738,1704814400783,-1721.02,0.00042082,30]
[310916739,1704814400793,-7028.61,0.00042082,30]
[310916740,1704814400802,-836.3,0.00042082,7]
[310916741,1704814400812,-500.0,0.00042082,30]
[310916742,1704814400822,-5593.4,0.00042082,30]
[310916743,1704814400832,-2579.3,0.00042082,30]
[310916744,1704814400843,-831.97,0.00042082,30]
[310916745,1704814400852,-500.0,0.00042082,30]
[310916746,1704814400862,-30439.38,0.00042082,30]
[310916747,1704814400871,-3381.6,0.00042082,30]
[310916748,1704814400880,-2158.92,0.00042082,30]
[310916749,1704814400891,-3472.05,0.00042082,30]
[310916750,1704814400900,-3977.49,0.00042082,30]
[310916751,1704814400910,-3410.32,0.00042082,30]
[310916752,1704814400920,-10635.21,0.00042082,30]
[310916753,1704814400929,-3128.49,0.00042082,30]
[310916754,1704814400939,-663.76,0.00042082,30]
[310916755,1704814400949,-24039.48,0.00042082,30]
[310916756,1704814400958,-500.0,0.00042082,30]
[310916757,1704814400967,-3985.89,0.00042082,30]
[310916758,1704814400977,-2042.98,0.00042082,30]
[310916759,1704814400987,-963.6,0.00042082,30]
[310916760,1704814400996,-666.14,0.00042082,30]
[310916761,1704814401006,-556.97,0.00042082,30]
[310916762,1704814401015,-8775.01,0.00042082,30]
[310916763,1704814401025,-528.6443232,0.00042082,30]
[310916764,1704814401035,-2400.49,0.00042082,30]
[310916765,1704814401045,-1309.81,0.00042082,30]
[310916766,1704814401054,-4562.41,0.00042082,30]
[310916767,1704814401063,-12849.89,0.00042082,30]
[310916768,1704814401073,-2978.02,0.00042082,30]
[310916769,1704814401083,-4825.39,0.00042082,30]
[310916770,1704814401092,-566.11,0.00042082,30]
[310916771,1704814401102,-1467.66,0.00042082,30]
[310916772,1704814401112,-2107.23,0.00042082,30]
[310916773,1704814401122,-500.0,0.00042082,30]
[310916774,1704814401132,-11369.64,0.00042082,30]
[310916775,1704814401143,-1188.47,0.00042082,30]
[310916776,1704814401152,-2592.28,0.00042082,30]
[310916777,1704814401162,-566.95,0.00042082,30]
[310916778,1704814401171,-520.31,0.00042082,30]
[310916779,1704814401180,-500.0,0.00042082,30]
[310916780,1704814401190,-13217.82,0.00042082,30]
[310916781,1704814401199,-866.47,0.00042082,30]
[310916782,1704814401209,-3181.95,0.00042082,30]
[310916783,1704814401218,-1308.82,0.00042082,30]
[310916784,1704814401228,-1243.26,0.00042082,30]
[310916785,1704814401238,-3734.08,0.00042082,30]
[310916786,1704814401248,-500.0,0.00042082,30]
[310916787,1704814401258,-1766.64,0.00042082,30]
[310916788,1704814401324,-3615.8,0.00042082,30]
[310916789,1704814401334,-799.0,0.00042082,30]
[310916790,1704814401345,-53505.47,0.00042082,30]
[310916791,1704814401355,-535.5660365,0.00042082,30]
[310916792,1704814401365,-500.0,0.00042082,30]
[310916793,1704814401375,-1413.08,0.00042082,30]
[310916794,1704814401387,-11287.22,0.00042082,30]
[310916795,1704814401397,-3747.83,0.00042082,30]
[310916796,1704814401407,-1155.76,0.00042082,30]
[310916797,1704814401417,-1079.77,0.00042082,30]
[310916798,1704814401430,-1909.74,0.00042082,30]
[310916799,1704814401440,-3376.04,0.00042082,30]
[310916800,1704814401449,-500.0,0.00042082,30]
[310916801,1704814401459,-1333.09,0.00042082,30]
[310916802,1704814401469,-9749.45,0.00042082,30]
[310916803,1704814401480,-539.77,0.00042082,30]
[310916804,1704814401489,-2218.8,0.00042082,30]
[310916805,1704814401498,-1480.74,0.00042082,30]
[310916806,1704814401508,-7804.99,0.00042082,30]
[310916807,1704814401518,-1670.61,0.00042082,30]
[310916808,1704814401528,-4741.82,0.00042082,30]
[310916809,1704814401539,-1839.15,0.00042082,30]
[310916810,1704814401548,-866.78,0.00042082,30]
[310916811,1704814401558,-1070.69,0.00042082,30]
[310916812,1704814401568,-1274.54,0.00042082,30]
[310916813,1704814401578,-744.76,0.00042082,30]
[310916814,1704814401588,-2037.9,0.00042082,30]
[310916815,1704814401598,-1352.73,0.00042082,30]
[310916816,1704814401608,-6743.41,0.00042082,30]
[310916817,1704814401618,-1978.49,0.00042082,30]
[310916818,1704814401628,-6850.2,0.00042082,30]
[310916819,1704814401638,-621.39,0.00042082,30]
[310916820,1704814401648,-3055.23,0.00042082,30]
[310916821,1704814401658,-2655.54,0.00042082,30]
[310916822,1704814401668,-764.5,0.00042082,30]
[310916823,1704814401677,-8868.04,0.00042082,30]
[310916824,1704814401686,-770.69,0.00042082,30]
[310916825,1704814401694,-4116.15,0.00042082,30]
[310916826,1704814401703,-6036.32,0.00042082,30]
[310916827,1704814401713,-3806.3,0.00042082,30]
[310916828,1704814401722,-1289.28,0.00042082,30]
[310916829,1704814401732,-5775.13,0.00042082,30]
[310916830,1704814401742,-500.0,0.00042082,30]
[310916831,1704814401751,-6309.52,0.00042082,30]
[310916832,1704814401761,-845.03,0.00042082,30]
[310916833,1704814401771,-1090.32,0.00042082,30]
[310916834,1704814401780,-3727.78,0.00042082,30]
[310916835,1704814401789,-5575.14,0.00042082,30]
[310916836,1704814401798,-901.26,0.00042082,30]
[310916837,1704814401808,-10643.6,0.00042082,30]
[310916838,1704814401817,-529.51,0.00042082,30]
[310916839,1704814401828,-4214.2,0.00042082,30]
[310916840,1704814401838,-500.0,0.00042082,30]
[310916841,1704814401851,-3567.97,0.00042082,30]
[310916842,1704814401861,-500.0,0.00042082,30]
[310916843,1704814401870,-2289.51,0.00042082,30]
[310916844,1704814401881,-4092.41,0.00042082,30]
[310916845,1704814401892,-4952.19,0.00042082,30]
[310916846,1704814401902,-546.11,0.00042082,30]
[310916847,1704814401911,-1000.5,0.00042082,30]
[310916848,1704814401920,-2584.46,0.00042082,30]
[310916849,1704814401930,-25536.63,0.00042082,30]
[310916850,1704814401940,-6469.48,0.00042082,30]
[310916851,1704814401950,-500.0,0.00042082,30]
[310916852,1704814401959,-1883.51,0.00042082,30]
[310916853,1704814401969,-14086.33,0.00042082,30]
[310916854,1704814401978,-17610.03,0.00042082,30]
[310916855,1704814401987,-2218.2,0.00042082,30]
[310916856,1704814401997,-1520.43,0.00042082,30]
[310916857,1704814402006,-2301.6,0.00042082,30]
[310916858,1704814402015,-3584.84,0.00042082,30]
[310916859,1704814402025,-82269.16,0.00042082,30]
[310916860,1704814402034,-12370.47,0.00042082,30]
[310916861,1704814402043,-587.12,0.00042082,30]
[310916862,1704814402052,-420.47912951,0.00042082,30]
[310916863,1704814402061,-2651.08,0.00042082,30]
[310916864,1704814402070,-811.16,0.00042082,30]
[310916865,1704814402080,-8660.7,0.00042082,30]
[310916866,1704814402089,-7898.64,0.00042082,30]
[310916867,1704814402098,-500.0,0.00042082,30]
[310916868,1704814402107,-1178.68,0.00042082,30]
[310916869,1704814402116,-6405.08,0.00042082,30]
[310916870,1704814402125,-6245.69,0.00042082,30]
[310916871,1704814402135,-3770.14,0.00042082,30]
[310916872,1704814402145,-500.0,0.00042082,30]
[310916873,1704814402155,-1033.39,0.00042082,30]
[310916874,1704814402165,-2108.08,0.00042082,30]
[310916875,1704814402175,-1235.98,0.00042082,30]
[310916876,1704814402185,-3248.4,0.00042082,30]
[310916877,1704814402195,-500.0,0.00042082,30]
[310916878,1704814402205,-4003.81,0.00042082,30]
[310916879,1704814402215,-1028.56,0.00042082,30]
[310916880,1704814402225,-923.06,0.00042082,30]
[310916881,1704814402234,-818.97,0.00042082,30]
[310916882,1704814402244,-3938.01,0.00042082,30]
[310916883,1704814402253,-500.0,0.00042082,30]
[310916884,1704814402263,-936.13,0.00042082,30]
[310916885,1704814402273,-5593.35,0.00042082,30]
[310916886,1704814402283,-500.0,0.00042082,30]
[310916887,1704814402293,-333.33333,0.00042098,8]
[310916888,1704814402302,-666.0,0.000421,4]
[310916889,1704814402311,-8750.0,0.00042125,2]
[310916890,1704814402321,-158.9376737,0.00042157,7]
[310916891,1704814402331,-1349.16,0.00042164,30]
[310916892,1704814402341,-500.0,0.00042164,30]
[310916893,1704814402350,-1655.21,0.00042164,30]
[310916894,1704814402360,-717.53,0.00042164,30]
[310916895,1704814402370,-684.27,0.00042164,30]
[310916896,1704814402380,-500.0,0.00042164,30]
[310916897,1704814402391,-878.82,0.00042164,30]
[310916898,1704814402400,-500.0,0.00042164,30]
[310916899,1704814402410,-1062.3,0.00042164,30]
[310916900,1704814402419,-505.38,0.00042164,30]
[310916901,1704814402428,-500.0,0.00042164,30]
[310916902,1704814402437,-701.66,0.00042164,30]
[310916903,1704814402447,-1067.49,0.00042164,30]
[310916904,1704814402457,-500.0,0.00042164,30]
[310916905,1704814402467,-565.87,0.00042164,30]
[310916906,1704814402477,-500.0,0.00042164,30]
[310916907,1704814402487,-500.0,0.00042164,30]
[310916908,1704814402496,-707.34,0.00042164,30]
[310916909,1704814402506,-676.09,0.00042164,30]
[310916910,1704814402515,-581.02,0.00042164,30]
[310916911,1704814402525,-1072.03,0.00042164,30]
[310916912,1704814402534,-712.95,0.00042164,30]
[310916913,1704814402544,-2060.33,0.00042164,30]
[310916914,1704814402554,-569.49,0.00042164,30]
[310916915,1704814402563,-500.0,0.00042164,30]
[310916916,1704814402573,-500.0,0.00042164,30]
[310916917,1704814402582,-611.31,0.00042164,30]
[310916918,1704814402593,-500.0,0.00042164,30]
[310916919,1704814402602,-500.0,0.00042164,30]
[310916920,1704814402612,-500.0,0.00042164,30]
[310916921,1704814402621,-500.0,0.00042164,30]
[310916922,1704814402630,-500.0,0.00042164,30]
[310916923,1704814402641,-569.87,0.00042164,2]
[310916924,1704814402650,-808.52,0.00042164,30]
[310916925,1704814402660,-1090.72,0.00042164,30]
[310916926,1704814402669,-500.0,0.00042164,30]
[310916927,1704814402678,-500.0,0.00042164,30]
[310916928,1704814402687,-1089.41,0.00042164,30]
[310916929,1704814402698,-675.87,0.00042164,30]
[310916930,1704814402708,-978.4,0.00042164,30]
[310916931,1704814402718,-246.64792929,0.00042164,30]